Cogmind - Beta 17 @@@ ROGUE MODE // 2026.06.24 @ 11:15:37 Player: Jimothy Jimone Result: Destroyed by Y-54 Guardian with Flak Gun Performance ------------- Evolutions (3) 1500 Regions Visited (4) 800 Robots Destroyed (32) 160 Value Destroyed (976) 976 Prototype IDs (16) 320 Alien Tech Used (0) 0 Bonus (-107) -107 TOTAL SCORE: 3649 Bonus ------- Friendly Fire -107 Cogmind --------- Core Integrity 0/700 Matter 76/300 Energy 84/100 System Corruption 5% Temperature Cool (24) Movement Core (150) Ox2 Location -7/Factory Parts ------- > --- POWER (2) -------- (None) > --- PROPULSION (4) --- (None) > --- UTILITY (5) ------ (None) > --- WEAPON (2) ------- Rocket Array > --- INVENTORY (5) ---- Advanced Terrain Scan Processor Advanced ECM Suite Hardlight Generator Plasma Cutter Peak State ------------ > --- POWER ------------ Subdweller Power Source > --- PROPULSION ------- Carbon-fiber Leg Titanium Leg Cargo Legs > --- UTILITY ---------- Improved Terrain Scanner Hardlight Generator Hardlight Generator > --- WEAPON ----------- Light Assault Rifle Assault Cannon > --- INVENTORY -------- Subdweller Monowheel Subdweller Optics [Rating: 37] Favorites ----------- Power Ion Engine Engine Ion Engine Power Core Light Nuclear Core Propulsion Aluminum Leg Leg Aluminum Leg Utility Improved Terrain Scanner Device Improved Terrain Scanner Processor Signal Interpreter Protection Improved Light Armor Plating Weapon Light Assault Rifle Energy Gun Gatling Laser Energy Cannon Plasma Cannon Ballistic Gun Light Assault Rifle Ballistic Cannon Assault Cannon Launcher Rocket Array Special Weapon Mining Laser Slashing Weapon Ripper Build | -11 -10 -10 -8 -7 ------- Run | Yrd Mat Sub Mat Fac Slots Evolved 6 | . . . 4 2 Power 1 | . . . 1 . Propulsion 2 | . . . 2 . Utility 3 | . . . 1 2 Weapon . | . . . . . Parts Attached 45 | 4 3 9 14 15 Power 10 | 1 . 1 4 4 Engine 7 | 1 . 1 3 2 Core 3 | . . . 1 2 Reactor . | . . . . . Propulsion 7 | 2 . 2 2 1 Treads . | . . . . . Leg 7 | 2 . 2 2 1 Wheel . | . . . . . Hover . | . . . . . Flight . | . . . . . Utility 14 | . 2 3 6 3 Device 8 | . 1 3 3 1 Storage . | . . . . . Processor 2 | . 1 . . 1 Hackware . | . . . . . Protection 4 | . . . 3 1 Artifact . | . . . . . Weapon 14 | 1 1 3 2 7 Energy Gun 2 | . . 1 . 1 Energy Cannon 1 | . . . . 1 Ballistic Gun 4 | 1 . 1 1 1 Ballistic Cannon 1 | . . . 1 . Launcher 3 | . . . . 3 Special Weapon 2 | . 1 . . 1 Impact Weapon . | . . . . . Slashing Weapon 1 | . . 1 . . Piercing Weapon . | . . . . . Special Melee Weapon . | . . . . . Unidentified Prototypes 2 | . . 1 . 1 Parts Lost 23 | . . 4 6 13 Power 6 | . . 1 3 2 Propulsion 3 | . . . 1 2 Utility 9 | . . 2 1 6 Weapon 5 | . . 1 1 3 Highest Loss Streak 13 | . . 4 3 13 To Critical Strikes . | . . . . . Average Backups 3 | . 1 4 1 4 Power 1 | . 1 1 . . Propulsion . | . . . 1 . Utility 1 | . . . . 2 Weapon . | . . . . 1 Tool/Special . | . . . . . Unused Backups 5 | . . 1 . 4 Power . | . . . . . Propulsion 1 | . . . . 1 Utility 4 | . . 1 . 3 Weapon . | . . . . . Tool/Special . | . . . . . Average Slot Usage (%) 72 | . 76 82 61 64 Engine 9 | . 14 11 10 4 Leg 18 | . 28 19 13 13 Device 13 | . 6 13 13 16 Processor 3 | . 4 5 . 3 Protection 5 | . . 4 5 9 Energy Gun 2 | . . 2 2 5 Ballistic Gun 9 | . 14 12 6 4 Special Weapon 2 | . 7 2 . 1 Slashing Weapon 3 | . . 7 . . Peak Build Rating 37 | 4 7 33 37 35 Average Rating 20 | 3 5 17 31 26 On Entrance 11 | . 4 7 26 18 Avg Prop Armor Cover (%) . | . . . . . Naked Turns 9 | . . . . 9 Heaviest Build 31 | 6 8 18 27 31 Greatest Support 87 | 20 20 55 87 32 Greatest Overweight (x) 8 | . . 5 . 8 Average Overweight (x) . | . . . . . Largest Inventory Capacity 5 | 5 5 5 5 5 Average Capacity 5 | 5 5 5 5 5 Most Carried 5 | 1 3 5 3 5 Average Carried 3 | . 1 4 1 4 Final Capacity 5 | 5 5 5 5 5 Final Carried 4 | 1 2 3 3 4 Transmogrified Parts 1 | . . 1 . . Integrity Recovered 18 | . . 18 . . Class Distribution -------------------- 100% | Mutant Dominant Class ---------------- Mutant | -10/Materials Mutant | -10/Subcaves Mutant | -8/Materials Mutant | -7/Factory Resources | -11 -10 -10 -8 -7 ----------- Run | Yrd Mat Sub Mat Fac Matter Collected 863 | 228 42 140 227 226 Remotely . | . . . . . Salvage Created 985 | . . 325 409 251 Parts 78 | . . 21 36 21 Haulers Intercepted . | . . . . . Recyclers Shooed . | . . . . . Parts Field Recycled . | . . . . . Retrieved Matter . | . . . . . Parts Self-Destructed 13 | . . 13 . . Prevented . | . . . . . Parts Restored . | . . . . . Kills | -11 -10 -10 -8 -7 ------- Run | Yrd Mat Sub Mat Fac Combat Hostiles Destroyed 29 | . . 9 15 5 Melee 3 | . . 3 . . Guns 12 | . . 6 2 4 Cannons 14 | . . . 13 1 Classes Destroyed 9 | . . 4 3 2 Worker 2 | . . . 1 1 Recycler 1 | . . . . 1 Swarmer 12 | . . 3 6 3 Grunt 5 | . . 2 2 1 Duelist 1 | . . . . 1 Sentry 6 | . . . 6 . Hunter 1 | . . . 1 . Artisan 1 | . . 1 . . Subdweller 4 | . . 4 . . Best Kill Streak 5 | . . 3 5 3 Combat Bots Only 4 | . . 3 4 3 Max Kills in Single Turn 2 | . . 1 2 2 Gunslinging 1 | . . . . 1 Exploded . | . . . . . Melee 1 | . . 1 . . Uniques/NPCs Destroyed . | . . . . . Combat | -11 -10 -10 -8 -7 -------- Run | Yrd Mat Sub Mat Fac Hostile Shots Fired 406 | . . 73 132 201 Missed 104 | . . 16 32 56 Hits 302 | . . 57 100 145 Melee 7 | . . . . 7 Projectile 295 | . . 57 100 138 Critical Strikes 16 | . . 3 2 11 Damage Taken 4032 | . . 864 1146 2022 Core 969 | . . 167 97 705 Absorbed by Shields 88 | . . . 88 . Redirected to Shielding 36 | . . . . 36 Core Remaining (%) 71 | 100 . 33 82 . Volleys Fired 117 | . 2 39 59 17 Largest 2 | . 1 2 2 2 Hottest 108 | . 100 100 85 108 Shots Fired 207 | . 2 64 112 29 Gun 137 | . . 56 58 23 Cannon 58 | . . . 54 4 Launcher 2 | . . . . 2 Special 10 | . 2 8 . . Kinetic 150 | . . 31 107 12 Thermal 55 | . 2 33 5 15 Explosive 2 | . . . . 2 Electromagnetic . | . . . . . Robot Hit Streak 11 | . . 11 6 9 Robot Miss Streak 4 | . . 4 3 3 Penetration Max 1 | . . . . 1 Secondary Targets 2 | . . . . 2 Max Gunslinging Chain 1 | . . . . 1 Shots Hit Robots 135 | . . 45 69 21 Core Hits 60 | . . 12 24 24 Critical Kills . | . . . . . Critical Parts Destroyed 1 | . . 1 . . Critical Strikes 4 | . . 2 2 . Destroy 1 | . . 1 . . Blast 2 | . . . 2 . Sever 1 | . . 1 . . Melee Attacks 27 | . . 27 . . Impact . | . . . . . Slashing 27 | . . 27 . . Piercing . | . . . . . Sneak Attacks 2 | . . 2 . . Combat Hostiles 1 | . . 1 . . Follow-up Attacks . | . . . . . Damage Inflicted 2726 | . . 910 1312 504 Guns 1248 | . . 531 378 339 Cannons 984 | . . . 934 50 Explosions 94 | . . . . 94 Melee 379 | . . 379 . . Ramming 21 | . . . . 21 Kinetic 1579 | . . 192 1210 177 Thermal 653 | . . 339 102 212 Explosive 94 | . . . . 94 Electromagnetic . | . . . . . Impact . | . . . . . Slashing 379 | . . 379 . . Piercing . | . . . . . Highest Corruption 5 | . . . . 5 Average Corruption 5 | . . . . 5 Corruption Purged . | . . . . . Corruption Blocked . | . . . . . Overload Shots . | . . . . . Overflow Damage 65 | . . 57 8 . Projectiles 8 | . . . 8 . Explosions . | . . . . . Melee 57 | . . 57 . . Knockbacks 11 | . . . 10 1 Impact 1 | . . . . 1 Kinetic 8 | . . . 8 . Secondary 2 | . . . 2 . Self-Inflicted Damage 10 | . . . . 10 Shots . | . . . . . Rammed 7 | . . . . 7 Targets Rammed 7 | . . . . 7 Kicked . | . . . . . Crushed . | . . . . . Highest Temperature 486 | . 20 404 350 486 Average Temperature 147 | . 10 82 139 202 Received Heat Transfer 1903 | . . 679 261 963 Effects 9 | . . . 2 7 Shutdowns 3 | . . . 1 2 Energy Bleed 1 | . . . 1 . Interference 1 | . . . . 1 Matter Decay 3 | . . . . 3 Short Circuit 1 | . . . . 1 Siege Activations . | . . . . . Martial Activations . | . . . . . Shielding Activations . | . . . . . Robots Disrupted . | . . . . . Combat Hostiles . | . . . . . Robots Corrupted . | . . . . . Combat Hostiles . | . . . . . Parts Fried . | . . . . . Impact Corruptions . | . . . . . Robots Melted . | . . . . . Combat Hostiles . | . . . . . Parts Melted 3 | . . 1 1 1 Heat Transferred 1000 | . . 400 125 475 Parts Sabotaged . | . . . . . Parts Stolen . | . . . . . Parts Stripped . | . . . . . Power Chain Reactions . | . . . . . Alert | -11 -10 -10 -8 -7 ------- Run | Yrd Mat Sub Mat Fac Maximum Alert Level 1 | . . . 1 . Low Security (%) 97 | 100 100 . 90 100 Level 1 2 | . . . 9 . Level 2 . | . . . . . Level 3 . | . . . . . Level 4 . | . . . . . Level 5 . | . . . . . High Security . | . . . . . Max Security . | . . . . . Peak Influence 218 | . 15 . 218 91 Initial 91 | . . . 29 91 Average 33 | . . . 78 22 Influence Increases 770 | . 31 120 423 196 Destroy 0b10 Robot/C 500 | . . 100 300 100 Destroy 0b10 Robot/NC 15 | . . . 5 10 Destroy Leader 130 | . . 20 90 20 Successful Hack 7 | . . . 7 . Disable Machine 60 | . 15 . 15 30 Destroy Structure 28 | . 1 . 6 21 Lose Combat Pursuer 30 | . 15 . . 15 Influence Decreases 770 | . 26 67 279 398 Entered New Map 143 | . . 3 29 111 Time Decay 456 | . 26 64 190 176 Lost Part 171 | . . . 60 111 Squads Dispatched 7 | . . . 2 5 Investigation . | . . . . . Extermination 1 | . . . . 1 Reinforcement 3 | . . . 1 2 Assault . | . . . . . Garrison 3 | . . . 1 2 Intercept . | . . . . . Searches Triggered . | . . . . . Construction Impeded 1 | . . . . 1 Haulers Reinforced . | . . . . . Active Scanning Responses . | . . . . . Cargo Convoy Interrupts . | . . . . . Stealth | -11 -10 -10 -8 -7 --------- Run | Yrd Mat Sub Mat Fac Distress Signals 3 | . . . 3 . Communications Jammed . | . . . . . Distress Signals . | . . . . . Times Spotted 47 | . 1 10 23 13 Peak Tracking Total 6 | . 1 3 6 6 Tactical Retreats 3 | . 1 1 . 1 Traps | -11 -10 -10 -8 -7 ------- Run | Yrd Mat Sub Mat Fac Traps Triggered . | . . . . . Indirectly . | . . . . . Trap Hack Attempts . | . . . . . Triggered . | . . . . . Disarmed . | . . . . . Reprogrammed . | . . . . . Reused . | . . . . . Traps Extracted . | . . . . . Installed . | . . . . . Triggered . | . . . . . Machines | -11 -10 -10 -8 -7 ---------- Run | Yrd Mat Sub Mat Fac Machines Disabled 6 | . 1 2 1 2 Max in Single Turn 1 | . 1 1 1 1 Machines Repaired . | . . . . . Machines Dismantled 1 | . . . . 1 Machines Sabotaged . | . . . . . Overloaded Fab Kills . | . . . . . Hacking | -11 -10 -10 -8 -7 --------- Run | Yrd Mat Sub Mat Fac Machines Accessed 7 | . 3 1 3 . Terminals 4 | . 2 . 2 . Fabricators . | . . . . . Repair Stations . | . . . . . Recycling Units 2 | . 1 . 1 . Scanalyzers . | . . . . . Garrison Access . | . . . . . Total Hacks 21 | . 7 9 5 . Successful 15 | . 3 9 3 . Failed 6 | . 4 . 2 . Catastrophic 1 | . 1 . . . Database Lockouts . | . . . . . Manual 4 | . 1 3 . . Terminals 7 | . 3 . 4 . Fabricators . | . . . . . Repair Stations . | . . . . . Recycling Units 5 | . 4 . 1 . Scanalyzers . | . . . . . Garrison Access . | . . . . . Terminal Hacks 12 | . 1 9 2 . Record 8 | . . 8 . . Robot Analysis 1 | . . . 1 . Locate Traps 2 | . 1 . 1 . Proto ID Catalog 1 | . . 1 . . Fabricator Hacks . | . . . . . Repair Station Hacks . | . . . . . Recycling Unit Hacks 3 | . 2 . 1 . Report Inventory 2 | . 1 . 1 . Retrieve Components 1 | . 1 . . . Scanalyzer . | . . . . . Garrison Access Hacks . | . . . . . Unauthorized Hacks . | . . . . . Terminals . | . . . . . Fabricators . | . . . . . Repair Stations . | . . . . . Recycling Units . | . . . . . Scanalyzers . | . . . . . Garrison Access . | . . . . . Data Cores Recovered . | . . . . . Used . | . . . . . Hacking Detections 6 | . 3 . 3 . Full Trace Events 1 | . 1 . . . Feedback Events . | . . . . . Feedback Blocked . | . . . . . Robot Schematics Acquired . | . . . . . Robots Built . | . . . . . Authchips . | . . . . . Time . | . . . . . Total Robot Build Rating . | . . . . . Part Schematics Acquired . | . . . . . Parts Built . | . . . . . Authchips . | . . . . . Time . | . . . . . Total Part Build Rating . | . . . . . Part Studies Acquired . | . . . . . Parts Repaired . | . . . . . Time . | . . . . . Parts Recycled . | . . . . . Recycled Matter . | . . . . . Retrieved Matter . | . . . . . Retrieved Components 2 | . 2 . . . Parts Scanalyzed . | . . . . . Part Schematics Acquired . | . . . . . Parts Damaged . | . . . . . Bothacking | -11 -10 -10 -8 -7 ------------ Run | Yrd Mat Sub Mat Fac Used RIF Installer . | . . . . . Robots Hacked . | . . . . . Non-combat . | . . . . . Combat . | . . . . . Robot Hacks Applied . | . . . . . Relay Couplers Released . | . . . . . Fabnet Peak Effective % . | . . . . . Robots Rewired . | . . . . . Allies Hacked . | . . . . . Hacks Repelled . | . . . . . Allies | -11 -10 -10 -8 -7 -------- Run | Yrd Mat Sub Mat Fac Total Allies . | . . . . . Largest Group . | . . . . . Highest-Rated Group . | . . . . . Highest-Rated Ally . | . . . . . Total Orders . | . . . . . Ally Attacks . | . . . . . Total Damage . | . . . . . Kills . | . . . . . Allies Corrupted . | . . . . . Allies Melted . | . . . . . Intel | -11 -10 -10 -8 -7 ------- Run | Yrd Mat Sub Mat Fac Active Infowar (turns) 1576 | . 169 913 461 33 Optics 600 | . . 212 388 . Terrain 337 | . . . 304 33 Seismic 870 | . 169 701 . . Robot Analysis Total 1 | . . . 1 . Derelict Logs Recovered 1 | . . 1 . . Drone Launches . | . . . . . Drone Recoveries . | . . . . . Exploration | -11 -10 -10 -8 -7 ------------- Run | Yrd Mat Sub Mat Fac Turns Passed 2744 | 49 365 1095 485 750 Spaces Moved 1376 | 37 263 531 219 326 Core 36 | 2 . 1 . 33 Treads . | . . . . . Legs 1340 | 35 263 530 219 293 Wheels . | . . . . . Hover . | . . . . . Flight . | . . . . . Fastest Speed 50 | 50 120 120 125 50 Average Speed 124 | 116 120 125 129 124 Slowest Speed 450 | 120 120 300 130 450 Overloaded Moves . | . . . . . Propulsion Burnouts . | . . . . . Robots Hopped . | . . . . . Potential Cave-ins . | . . . . . Cave-ins Triggered . | . . . . . Exploration Rate (%) 21 | 3 38 36 22 7 Regions Visited 4 Branch Regions 1 Pre-discovered Areas . | . . . . . Known Exits Taken 1 | . 1 . . . Unknown Exits Taken 3 | 1 . 1 1 . Scrap Searched 4 | . . 4 . . Spaces Dug 3 | . 1 2 . . Terrain Destroyed 73 | . 1 2 4 66 Melee 2 | . . 2 . . Projectile 5 | . 1 . 4 . AOE 66 | . . . . 66 Terrain Rammed . | . . . . . Walls Destroyed . | . . . . . Machines Disabled . | . . . . . Actions | -11 -10 -10 -8 -7 --------- Run | Yrd Mat Sub Mat Fac Total 2102 | 41 305 845 316 595 Wait 470 | . 36 227 17 190 Move 1372 | 36 262 530 218 326 Hop . | . . . . . Pick Up 13 | 1 2 4 . 6 Fast Attach 32 | 4 2 5 7 14 Attach 9 | . 1 2 3 3 Detach 8 | . . 2 4 2 Swap 10 | . . 3 5 2 Drop 18 | . . 6 3 9 Fire 117 | . 2 39 59 17 Melee 27 | . . 27 . . Ram 7 | . . . . 7 Kick . | . . . . . Crush . | . . . . . Escape Stasis . | . . . . . Rewire . | . . . . . Trap . | . . . . . Miscellaneous 19 | . . . . 19 Route ------- -11/Scrapyard -10/Materials (discovered 4 exits: *Mat / [*Min x2] / *Sub) -10/Subcaves -8/Materials -7/Factory History --------- Turn | Location | Event 8 | -11/Scrapyard | Discovered new exit (range 15) 50 | -11/Scrapyard | Entered Materials 77 | -10/Materials | Discovered new exit (range 5) 97 | -10/Materials | Discovered new exit (range 14) 271 | -10/Materials | Discovered new exit (range 15) 289 | -10/Materials | Identified exit to Materials 307 | -10/Materials | Build established: Mutant 402 | -10/Materials | Discovered new exit (range 11) 414 | -10/Materials | Identified exit to Subcaves 415 | -10/Materials | Entered Subcaves 441 | -10/Subcaves | Shifting Twisted Machinery released Sub. Power Source 442 | -10/Subcaves | Shifting Twisted Machinery released Sub. Laser 560 | -10/Subcaves | Shifting Twisted Machinery released Sub. Monowheel 578 | -10/Subcaves | Shifting Twisted Machinery released Ripper 842 | -10/Subcaves | Visited 4L-MR0's lab 857 | -10/Subcaves | Found Prototype Device 857 | -10/Subcaves | Identified Sfc. Transmogrifier 989 | -10/Subcaves | Found Cargo Legs 991 | -10/Subcaves | Attached Cargo Legs, gained temporary slots: Utility x2 1114 | -10/Subcaves | Disturbed a concealed Subdweller 1318 | -10/Subcaves | Lost 4 parts (1p2u1w) 1356 | -10/Subcaves | Shifting Twisted Machinery released Battle Rifle 1363 | -10/Subcaves | Shifting Twisted Machinery released Sub. Monowheel 1404 | -10/Subcaves | Learned Materials emergency access door positions 1457 | -10/Subcaves | Core integrity fell below 50% 1480 | -10/Subcaves | Discovered new exit (range 21) 1510 | -10/Subcaves | Entered Materials 1510 | -8/Materials | Evolved 4 slots: Power x1, Propulsion x2, Utility x1 1886 | -8/Materials | Garrison activated, responded to threat 1972 | -8/Materials | Discovered new exit (range 16) 1995 | -8/Materials | Entered Factory 1995 | -7/Factory | Evolved 2 slots: Utility x2 1996 | -7/Factory | Lost 3 parts (1p1n1w) 2616 | -7/Factory | Garrison activated, responded to threat 2704 | -7/Factory | Core integrity fell below 50% 2717 | -7/Factory | Found Prototype Launcher 2717 | -7/Factory | Identified Rocket Array 2720 | -7/Factory | Found Rocket Array 2740 | -7/Factory | Core integrity fell below 20% 2744 | -7/Factory | Found Rocket Array 2745 | -7/Factory | Destroyed by Y-54 Guardian with Flak Gun Last Messages --------------- TERMINAL." U-05 Engineer lays Concrete. The unstable cave ceiling collapses. Rocket Array destroyed. U-05 Engineer lays Concrete. Rocket Array destroyed. Core Shielding destroyed. U-05 Engineer lays Concrete. Slammed into G-47 Trooper. G-47 Trooper knocked back. Imp. Targeting Computer destroyed. System corrupted by crushing effect (+5). Critical hit (Burn: +37). Slammed into G-47 Trooper. ALERT: Hostiles spotted, dispatching reinforcements to Terminal F006. Slammed into G-47 Trooper. U-05 Engineer lays Concrete. Acquired Rocket Array. U-05 Engineer lays Concrete. Map ----- +----------------------------------------------------+ | ?????????????????????????????????????????????????? | | ?????????????????????????????????????????????????? | | ?????????????????????????????????????????????????? | | ?????????????????????????????????????????????????? | | ?????????????????????????????????????????????????? | | ?????????????????????????????????????????????????? | | ?????????????????????????????????????????????????? | | ?????????????????????????????????????????????????? | | ?????????????????????????????????????????????????? | | ?????????????????????????????????????????????????? | | ?????????????????????????????????????????????????? | | ?????????????????????????????????????????????????? | | ??????????? ????????????????????????????????????? | | ?????????+ ???????????????????????????????????? | | ?????????# ???????????????????????????????????? | | ?????????# ???#+?????????????????????????????? | | ????????## #### #####????????????????????????? | | ????????? ????????????????????????? | | ?????????? ????????????????????????? | | ???????????? ##+########????????????????? | | ????????????? # ????????????????? | | ??????????????? # """ ?#?????????????? | | ????????????????# # """"" #?????????????? | | ????????????????# # """"" #?????????????? | | ????????? ""T"" # # #?????????????? | | ????????# + # @] """ ??????????????? | | ????????# # gg ] """"" #?????????????? | | ????????????????# # ] """"" #?????????????? | | ????????????????# # ????????????? | | ????????????????# #g Y u #?????????? | | ????????????????# # #?????????? | | ????????????????# + #?????????? | | ????????????????# ######### # ??????????? | | ????????????????# #?????? ??????????? | | ????????????##### #??????? ??????????? | | ????? #???????? ???????????? | | ?????????##########+#######????# # ???????????? | | ?????????????# #?????# # ????????????? | | ?????????????# #??????] ????????????? | | ?????????????# #??????? ??????????????? | | ?????????????# ] #??????????????????????? | | ?????????????# #??????????????????????? | | ?????????????# * =#??????????????????????? | | ?????????????# [[!#??????????????????????? | | ?????????????# ! =!%########+??????????????? | | ?????????????# [+ % ???????? | | ########?????# # ???????? | | # #?????# # """" " ???????? | | + # ????# +? """" ????????? | | # " " #?????#########+#### """ ???????????? | +----------------------------------------------------+ Best States ------------- Heat Dissipation 34 Energy Generation 24 Energy Capacity 365 Matter Stores 300 Matter Capacity 300 Sight Range 21 Terrain Scan Range 16 Terrain Scan Density 10 Armor Coverage 300 Core Shielding 20 Evasion (%) 55 Targeting Accuracy 6 Kinecelleration 30 Item Schematics ----------------- None Robot Schematics ------------------ None Fabricated ------------ Nothing Repaired ---------- Nothing Studied --------- None Alien Tech Used ----------------- None Achievements -------------- Art Critic Backstab Mistaken Identity Challenges ------------ None Game ------ Seed ArmageddonDisruptorTerrabomb Manual? 0 Play Time 00:41:27 Cumulative 31.8 hours Start 2026.06.24 @ 09:56:25 End 2026.06.24 @ 11:15:37 Sessions 1 Manual Loads 0 Difficulty Rogue Special Mode None Game No. 61 Rogue 61 Adventurer 0 Explorer 0 Win Type - Total 0 Types 0/0/0/0/0/0/0/0/0/0 Lore% 29 Gallery% 20 Achievement% 21 Wizard Run 0 Options --------- Layout 1 ASCII 0 Keyboard 1 Movement Arrows Keybinds 0 Fullscreen 0 Font 14/SmallcapsGlow Map View 55x38 Zoom Use 0% Tactical HUD 0 Map Filters NONE Filters NONE Steam 1 RUN: 088df0b7-a97d-48f9-a1e1-3a38ee6ba08c